[Event "Live Chess"]
[Site "Chess.com"]
[Date "2023.05.21"]
[Round "-"]
[White "HD_IN4k"]
[Black "Jo1ts"]
[Result "0-1"]
[WhiteElo "388"]
[BlackElo "793"]
[TimeControl "300"]
[EndTime "16:38:38 PDT"]
[Termination "Jo1ts won by resignation"]

1. d4 {[%clk 0:04:57.6]} 1... d5 {[%clk 0:04:54.1]} 2. c4 {[%clk 0:04:56.7]}
2... e6 {[%clk 0:04:45.5]} 3. Nc3 {[%clk 0:04:53.9]} 3... Nf6 {[%clk 0:04:44.3]}
4. Nf3 {[%clk 0:04:50.5]} 4... Nc6 {[%clk 0:04:40.4]} 5. cxd5 {[%clk 0:04:48.5]}
5... exd5 {[%clk 0:04:37.4]} 6. e3 {[%clk 0:04:38.1]} 6... Bb4 {[%clk
0:04:36.1]} 7. Bb5 {[%clk 0:04:35.6]} 7... Bd7 {[%clk 0:04:32.9]} 8. Ne5 {[%clk
0:04:33.6]} 8... Qe7 {[%clk 0:04:07.5]} 9. Nxc6 {[%clk 0:04:23.7]} 9... Bxc6
{[%clk 0:04:07.4]} 10. Bxc6+ {[%clk 0:04:21.8]} 10... bxc6 {[%clk 0:04:07.3]}
11. a3 {[%clk 0:04:18.4]} 11... Bxc3+ {[%clk 0:04:02.3]} 12. bxc3 {[%clk
0:04:18.3]} 12... O-O {[%clk 0:04:00.2]} 13. Rb1 {[%clk 0:04:10.2]} 13... Ne4
{[%clk 0:03:59.6]} 14. f3 {[%clk 0:04:00]} 14... Nxc3 {[%clk 0:03:56.8]} 15. Qc2
{[%clk 0:03:56.5]} 15... Nxb1 {[%clk 0:03:54.9]} 16. Qxb1 {[%clk 0:03:55.8]}
16... c5 {[%clk 0:03:48.2]} 17. dxc5 {[%clk 0:03:47.9]} 17... Qxc5 {[%clk
0:03:48.1]} 18. e4 {[%clk 0:03:41.1]} 18... dxe4 {[%clk 0:03:43.9]} 19. Qb4
{[%clk 0:03:25.4]} 19... Qxc1+ {[%clk 0:03:39.3]} 20. Kf2 {[%clk 0:03:21.5]}
20... Qxh1 {[%clk 0:03:37.9]} 21. fxe4 {[%clk 0:03:12.1]} 21... Qxh2 {[%clk
0:03:34.6]} 22. e5 {[%clk 0:03:09.5]} 22... Qxe5 {[%clk 0:03:30.9]} 23. g4
{[%clk 0:03:02]} 23... Rfe8 {[%clk 0:03:28]} 24. g5 {[%clk 0:02:59.6]} 24...
Qxg5 {[%clk 0:03:24.6]} 25. Qb7 {[%clk 0:02:54.3]} 25... Qe3+ {[%clk 0:03:19.4]}
26. Kg2 {[%clk 0:02:51.8]} 26... Qe4+ {[%clk 0:03:18.2]} 27. Kf2 {[%clk
0:02:50.2]} 27... Qxb7 {[%clk 0:03:16.3]} 0-1

[Event "Live Chess"]
[Site "Chess.com"]
[Date "2023.05.21"]
[Round "-"]
[White "Fazer180"]
[Black "jimwad"]
[Result "1-0"]
[WhiteElo "1761"]
[BlackElo "1214"]
[TimeControl "300"]
[EndTime "16:38:49 PDT"]
[Termination "Fazer180 won by resignation"]

1. e4 {[%clk 0:04:56.7]} 1... e5 {[%clk 0:04:58.8]} 2. Nf3 {[%clk 0:04:55.2]}
2... Nc6 {[%clk 0:04:57.8]} 3. d4 {[%clk 0:04:53.9]} 3... exd4 {[%clk
0:04:56.6]} 4. Nxd4 {[%clk 0:04:53.5]} 4... Nxd4 {[%clk 0:04:55.7]} 5. Qxd4
{[%clk 0:04:50.9]} 5... b6 {[%clk 0:04:51.2]} 6. Nc3 {[%clk 0:04:47.6]} 6... Bc5
{[%clk 0:04:49.6]} 7. Qxg7 {[%clk 0:04:40.8]} 7... Qf6 {[%clk 0:04:41.6]} 8.
Qxf6 {[%clk 0:04:31.6]} 8... Nxf6 {[%clk 0:04:39.9]} 9. Nb5 {[%clk 0:04:26.2]}
9... Kd8 {[%clk 0:04:33.5]} 10. Bg5 {[%clk 0:04:20.9]} 10... Be7 {[%clk
0:04:30.1]} 11. Bd3 {[%clk 0:04:10]} 11... Rg8 {[%clk 0:04:27.8]} 12. h4 {[%clk
0:03:59.4]} 12... Bb7 {[%clk 0:04:23.4]} 13. O-O-O {[%clk 0:03:36.9]} 13... a6
{[%clk 0:04:03.4]} 14. Nd4 {[%clk 0:03:24.9]} 14... Nxe4 {[%clk 0:03:41.7]} 15.
Bxe7+ {[%clk 0:03:21.5]} 15... Kxe7 {[%clk 0:03:40.5]} 16. Rhe1 {[%clk
0:03:08.9]} 16... d5 {[%clk 0:03:35.5]} 17. f3 {[%clk 0:03:06.6]} 17... f5
{[%clk 0:03:32.7]} 18. fxe4 {[%clk 0:02:57.6]} 18... fxe4 {[%clk 0:03:31.3]} 19.
Bf1 {[%clk 0:02:48.8]} 19... Kd6 {[%clk 0:03:23.6]} 20. Nf5+ {[%clk 0:02:42.8]}
20... Kc5 {[%clk 0:03:17.6]} 21. g3 {[%clk 0:02:31.2]} 21... Raf8 {[%clk
0:03:09.4]} 22. Bh3 {[%clk 0:02:28.6]} 22... b5 {[%clk 0:02:57]} 23. Nd4 {[%clk
0:02:24.8]} 23... Kb6 {[%clk 0:02:55]} 24. Rg1 {[%clk 0:02:11.6]} 24... c5
{[%clk 0:02:41.4]} 25. Ne2 {[%clk 0:02:04.6]} 25... d4 {[%clk 0:02:39.4]} 26.
Nf4 {[%clk 0:02:00.8]} 26... e3 {[%clk 0:02:28.3]} 27. c3 {[%clk 0:01:56.3]}
27... Bf3 {[%clk 0:02:18.3]} 28. Rde1 {[%clk 0:01:50.2]} 28... Re8 {[%clk
0:01:58.7]} 29. Bf5 {[%clk 0:01:31.2]} 29... Be4 {[%clk 0:01:50.4]} 30. Bxe4
{[%clk 0:01:29.1]} 30... Rxe4 {[%clk 0:01:48.4]} 31. cxd4 {[%clk 0:01:28]} 31...
cxd4 {[%clk 0:01:46.2]} 32. Nd3 {[%clk 0:01:26.2]} 32... Rc8+ {[%clk 0:01:39.3]}
33. Kd1 {[%clk 0:01:21.4]} 33... a5 {[%clk 0:01:30.8]} 34. Re2 {[%clk
0:01:11.8]} 34... a4 {[%clk 0:01:24.6]} 35. Rc2 {[%clk 0:01:10.2]} 35... Rxc2
{[%clk 0:01:19.5]} 36. Kxc2 {[%clk 0:01:10.1]} 36... e2 {[%clk 0:01:18.5]} 37.
Kd2 {[%clk 0:01:07.6]} 37... Ka5 {[%clk 0:01:14.5]} 38. Re1 {[%clk 0:01:05.2]}
38... b4 {[%clk 0:01:10.4]} 39. Rxe2 {[%clk 0:01:03.8]} 39... Rxe2+ {[%clk
0:01:09]} 40. Kxe2 {[%clk 0:01:03.7]} 40... b3 {[%clk 0:01:08]} 41. axb3 {[%clk
0:01:01]} 41... axb3 {[%clk 0:01:06.5]} 42. Nc1 {[%clk 0:00:58.5]} 42... Kb4
{[%clk 0:01:05.3]} 43. Kd3 {[%clk 0:00:57.6]} 43... Kc5 {[%clk 0:01:04.1]} 44.
Nxb3+ {[%clk 0:00:54.9]} 44... Kd5 {[%clk 0:01:03]} 45. Nxd4 {[%clk 0:00:54.1]}
45... h5 {[%clk 0:00:58.6]} 46. b4 {[%clk 0:00:51.4]} 1-0

[Event "Live Chess"]
[Site "Chess.com"]
[Date "2023.05.21"]
[Round "-"]
[White "mikkyb4"]
[Black "CheckThis4"]
[Result "0-1"]
[WhiteElo "1017"]
[BlackElo "2541"]
[TimeControl "300"]
[EndTime "16:38:58 PDT"]
[Termination "CheckThis4 won by checkmate"]

1. e4 {[%clk 0:04:58.5]} 1... d5 {[%clk 0:04:58.7]} 2. exd5 {[%clk 0:04:52.7]}
2... Nf6 {[%clk 0:04:56.2]} 3. c4 {[%clk 0:04:43.1]} 3... e6 {[%clk 0:04:53.2]}
4. Nc3 {[%clk 0:04:38.6]} 4... exd5 {[%clk 0:04:51.6]} 5. Qe2+ {[%clk
0:04:37.2]} 5... Be7 {[%clk 0:04:50.1]} 6. cxd5 {[%clk 0:04:31.5]} 6... O-O
{[%clk 0:04:48.9]} 7. Nf3 {[%clk 0:04:26.6]} 7... Re8 {[%clk 0:04:47.4]} 8. Qd3
{[%clk 0:04:07.3]} 8... Na6 {[%clk 0:04:44.1]} 9. Be2 {[%clk 0:04:05.3]} 9...
Nb4 {[%clk 0:04:42.9]} 10. Qb1 {[%clk 0:03:48.7]} 10... Nfxd5 {[%clk 0:04:38.3]}
11. O-O {[%clk 0:03:44.8]} 11... Nf4 {[%clk 0:04:35.5]} 12. Bc4 {[%clk
0:03:32.1]} 12... Nbd3 {[%clk 0:04:23.6]} 13. Ne1 {[%clk 0:03:03.3]} 13... Bf5
{[%clk 0:04:09.9]} 14. Nd5 {[%clk 0:02:38.6]} 14... Bg6 {[%clk 0:03:37]} 15.
Nxf4 {[%clk 0:02:17.5]} 15... Nxf4 {[%clk 0:03:33]} 16. d3 {[%clk 0:02:16.6]}
16... Ne2+ {[%clk 0:03:23]} 17. Kh1 {[%clk 0:02:09.9]} 17... Bd6 {[%clk
0:03:21.9]} 18. g3 {[%clk 0:01:18.4]} 18... Bb4 {[%clk 0:03:09.5]} 19. Ng2
{[%clk 0:00:54.3]} 19... c6 {[%clk 0:02:48.5]} 20. Nf4 {[%clk 0:00:45.1]} 20...
b5 {[%clk 0:02:44.2]} 21. Nxg6 {[%clk 0:00:40.2]} 21... bxc4 {[%clk 0:02:34.1]}
22. Nf4 {[%clk 0:00:31.3]} 22... Nxf4 {[%clk 0:02:32.5]} 23. Bxf4 {[%clk
0:00:29.2]} 23... cxd3 {[%clk 0:02:31.6]} 24. Rd1 {[%clk 0:00:27.3]} 24... Qd5+
{[%clk 0:02:29.7]} 25. Kg1 {[%clk 0:00:22.1]} 25... Rad8 {[%clk 0:02:29.3]} 26.
a3 {[%clk 0:00:19]} 26... Bc5 {[%clk 0:02:25.2]} 27. b4 {[%clk 0:00:17.8]} 27...
Bxf2+ {[%clk 0:02:20.7]} 28. Kxf2 {[%clk 0:00:15.8]} 28... Re2+ {[%clk
0:02:18.6]} 29. Kf1 {[%clk 0:00:13.6]} 29... Qh1# {[%clk 0:02:15.3]} 0-1

[Event "Live Chess"]
[Site "Chess.com"]
[Date "2023.05.21"]
[Round "-"]
[White "Long1968"]
[Black "KGreenGator"]
[Result "0-1"]
[WhiteElo "1182"]
[BlackElo "1769"]
[TimeControl "300"]
[EndTime "16:38:58 PDT"]
[Termination "KGreenGator won on time"]

1. e4 {[%clk 0:04:56.7]} 1... c5 {[%clk 0:04:59.3]} 2. c3 {[%clk 0:04:54.3]}
2... Nc6 {[%clk 0:04:51.7]} 3. d4 {[%clk 0:04:50.9]} 3... cxd4 {[%clk
0:04:48.9]} 4. cxd4 {[%clk 0:04:48.8]} 4... d5 {[%clk 0:04:47.7]} 5. exd5 {[%clk
0:04:44.1]} 5... Qxd5 {[%clk 0:04:45.9]} 6. Nf3 {[%clk 0:04:39.8]} 6... Nf6
{[%clk 0:04:42.5]} 7. Nc3 {[%clk 0:04:35.3]} 7... Qd8 {[%clk 0:04:39.8]} 8. Be3
{[%clk 0:04:26.2]} 8... e6 {[%clk 0:04:38.3]} 9. Be2 {[%clk 0:04:17.7]} 9... a6
{[%clk 0:04:35.4]} 10. a4 {[%clk 0:04:12.6]} 10... h6 {[%clk 0:04:34.2]} 11. O-O
{[%clk 0:04:08.5]} 11... Be7 {[%clk 0:04:31]} 12. Ne5 {[%clk 0:03:52.6]} 12...
Nxe5 {[%clk 0:04:28.1]} 13. dxe5 {[%clk 0:03:48.7]} 13... Nd7 {[%clk 0:04:24.4]}
14. f4 {[%clk 0:03:41.4]} 14... O-O {[%clk 0:04:20.3]} 15. Ne4 {[%clk
0:03:30.4]} 15... Qc7 {[%clk 0:04:14.1]} 16. Rc1 {[%clk 0:03:10.7]} 16... Qa5
{[%clk 0:04:06.8]} 17. Nd6 {[%clk 0:02:18.8]} 17... Bxd6 {[%clk 0:04:01.1]} 18.
Qxd6 {[%clk 0:01:59.6]} 18... b5 {[%clk 0:03:43.2]} 19. axb5 {[%clk 0:01:43.8]}
19... axb5 {[%clk 0:03:40.4]} 20. Rc7 {[%clk 0:01:13.9]} 20... Ra6 {[%clk
0:03:37.7]} 21. Bd2 {[%clk 0:00:43.4]} 21... Qa4 {[%clk 0:03:32.1]} 22. Qe7
{[%clk 0:00:25.8]} 22... Nb6 {[%clk 0:03:26.8]} 23. Bd1 {[%clk 0:00:15.9]} 23...
Qa2 {[%clk 0:03:24.3]} 24. Bb4 {[%clk 0:00:08.2]} 24... Nd5 {[%clk 0:03:10.3]}
25. Qxf8+ {[%clk 0:00:03.6]} 25... Kh7 {[%clk 0:03:09.7]} 0-1

[Event "Live Chess"]
[Site "Chess.com"]
[Date "2023.05.21"]
[Round "-"]
[White "ClassyChameleon"]
[Black "wot-not"]
[Result "0-1"]
[WhiteElo "1056"]
[BlackElo "1545"]
[TimeControl "300"]
[EndTime "16:39:36 PDT"]
[Termination "wot-not won by resignation"]

1. e4 {[%clk 0:04:56.1]} 1... e5 {[%clk 0:04:58.5]} 2. Nf3 {[%clk 0:04:50.9]}
2... d6 {[%clk 0:04:57.8]} 3. c3 {[%clk 0:04:50.1]} 3... f5 {[%clk 0:04:57]} 4.
d3 {[%clk 0:04:47.5]} 4... Nf6 {[%clk 0:04:53.9]} 5. Bg5 {[%clk 0:04:43]} 5...
Be7 {[%clk 0:04:51.3]} 6. h4 {[%clk 0:04:37.9]} 6... h6 {[%clk 0:04:49.5]} 7.
Bxf6 {[%clk 0:04:36.7]} 7... Bxf6 {[%clk 0:04:48.3]} 8. exf5 {[%clk 0:04:35.1]}
8... Bxf5 {[%clk 0:04:46.6]} 9. d4 {[%clk 0:04:33.8]} 9... e4 {[%clk 0:04:43.8]}
10. Nh2 {[%clk 0:04:20.4]} 10... Bxh4 {[%clk 0:04:39.5]} 11. Bc4 {[%clk
0:04:15.9]} 11... d5 {[%clk 0:04:35.6]} 12. Bb3 {[%clk 0:04:13.5]} 12... O-O
{[%clk 0:04:33.1]} 13. O-O {[%clk 0:04:12.2]} 13... c6 {[%clk 0:04:24.7]} 14.
Ng4 {[%clk 0:03:58.6]} 14... Bxg4 {[%clk 0:04:22.7]} 15. Qxg4 {[%clk 0:03:57.7]}
15... Qg5 {[%clk 0:04:19]} 16. Qxg5 {[%clk 0:03:39.7]} 16... Bxg5 {[%clk
0:04:16.3]} 17. f3 {[%clk 0:03:33.5]} 17... exf3 {[%clk 0:04:13.2]} 18. Rxf3
{[%clk 0:03:31.8]} 18... Rxf3 {[%clk 0:04:12.1]} 19. gxf3 {[%clk 0:03:31.2]}
19... Nd7 {[%clk 0:04:11.4]} 20. Kf2 {[%clk 0:03:27.9]} 20... Rf8 {[%clk
0:04:09]} 21. Bd1 {[%clk 0:03:26.3]} 21... Nb6 {[%clk 0:04:04.3]} 22. Na3 {[%clk
0:03:23.8]} 22... Re8 {[%clk 0:03:52.8]} 23. Nc2 {[%clk 0:03:19]} 23... Nc4
{[%clk 0:03:50.5]} 24. Kg3 {[%clk 0:03:12.2]} 24... b6 {[%clk 0:03:44.6]} 25.
Rb1 {[%clk 0:02:58.7]} 25... Rf8 {[%clk 0:03:37.1]} 26. Nb4 {[%clk 0:02:53.2]}
26... c5 {[%clk 0:03:33.8]} 27. Nxd5 {[%clk 0:02:51.1]} 27... cxd4 {[%clk
0:03:30.8]} 28. cxd4 {[%clk 0:02:48.4]} 28... Ne3 {[%clk 0:03:28.1]} 29. Nxe3
{[%clk 0:02:45.6]} 29... Bxe3 {[%clk 0:03:27.1]} 30. d5 {[%clk 0:02:43.8]} 30...
Bf4+ {[%clk 0:03:16.9]} 31. Kf2 {[%clk 0:02:40.8]} 31... g5 {[%clk 0:03:10.6]}
32. Bb3 {[%clk 0:02:37.2]} 32... Kg7 {[%clk 0:03:09]} 33. Re1 {[%clk 0:02:32.7]}
33... Kf6 {[%clk 0:03:03.6]} 34. Re6+ {[%clk 0:02:30.7]} 34... Kf5 {[%clk
0:03:00]} 35. d6 {[%clk 0:02:25.9]} 35... Rc8 {[%clk 0:02:47.9]} 36. d7 {[%clk
0:02:19.3]} 36... Rd8 {[%clk 0:02:45.2]} 37. Re7 {[%clk 0:02:13.5]} 37... Kf6
{[%clk 0:02:34.1]} 38. Rf7+ {[%clk 0:02:04.5]} 38... Kg6 {[%clk 0:02:30.3]} 39.
Re7 {[%clk 0:01:50.3]} 39... h5 {[%clk 0:02:24.6]} 40. Ba4 {[%clk 0:01:42.8]}
40... h4 {[%clk 0:02:22.2]} 41. Re8 {[%clk 0:01:41.7]} 41... Bc7 {[%clk
0:02:21]} 42. Bc6 {[%clk 0:01:02.1]} 42... a6 {[%clk 0:01:57.4]} 43. Kg2 {[%clk
0:00:59.2]} 43... b5 {[%clk 0:01:55.2]} 44. Kh3 {[%clk 0:00:57.3]} 44... b4
{[%clk 0:01:43.2]} 45. Kg4 {[%clk 0:00:56.2]} 45... a5 {[%clk 0:01:41.8]} 46.
Be4+ {[%clk 0:00:55.1]} 46... Kf6 {[%clk 0:01:39.7]} 47. Rf8+ {[%clk 0:00:48.6]}
47... Ke7 {[%clk 0:01:37.6]} 48. Rxd8 {[%clk 0:00:43.3]} 48... Bxd8 {[%clk
0:01:31.3]} 49. Bf5 {[%clk 0:00:42.3]} 49... Kd6 {[%clk 0:01:27.6]} 50. b3
{[%clk 0:00:39.9]} 50... Ke5 {[%clk 0:01:22.8]} 51. Be4 {[%clk 0:00:28.4]} 51...
Kd4 {[%clk 0:01:20.2]} 52. Kf5 {[%clk 0:00:22.1]} 52... h3 {[%clk 0:01:17.5]}
53. Bc6 {[%clk 0:00:17.7]} 53... h2 {[%clk 0:01:14.7]} 54. f4 {[%clk 0:00:17.3]}
54... gxf4 {[%clk 0:01:12]} 55. Kxf4 {[%clk 0:00:16.4]} 55... Kc3 {[%clk
0:01:07.7]} 56. Kf5 {[%clk 0:00:16]} 56... Kb2 {[%clk 0:01:06.7]} 57. Ke6 {[%clk
0:00:15.7]} 57... Kxa2 {[%clk 0:01:05.8]} 58. Kf7 {[%clk 0:00:15.5]} 58... Kxb3
{[%clk 0:01:04.5]} 59. Ke8 {[%clk 0:00:15.1]} 59... Bh4 {[%clk 0:01:01.9]} 60.
d8=Q {[%clk 0:00:13.2]} 60... Bxd8 {[%clk 0:00:59.8]} 61. Kxd8 {[%clk
0:00:12.9]} 61... a4 {[%clk 0:00:58.8]} 62. Bxa4+ {[%clk 0:00:12.2]} 62... Kxa4
{[%clk 0:00:57.8]} 63. Kd7 {[%clk 0:00:11.8]} 63... b3 {[%clk 0:00:57.6]} 64.
Kd6 {[%clk 0:00:11.5]} 64... b2 {[%clk 0:00:57.4]} 65. Kd5 {[%clk 0:00:11.3]}
65... b1=Q {[%clk 0:00:57.2]} 66. Kd4 {[%clk 0:00:11.1]} 66... h1=Q {[%clk
0:00:56.7]} 67. Ke3 {[%clk 0:00:09.3]} 67... Qhc1+ {[%clk 0:00:55.9]} 68. Kf3
{[%clk 0:00:07.6]} 68... Qbc2 {[%clk 0:00:54.4]} 0-1

[Event "Live Chess"]
[Site "Chess.com"]
[Date "2023.05.21"]
[Round "-"]
[White "jennybobby44"]
[Black "stevochess11"]
[Result "0-1"]
[WhiteElo "1835"]
[BlackElo "1766"]
[TimeControl "300"]
[EndTime "16:39:44 PDT"]
[Termination "stevochess11 won on time"]

1. Nf3 {[%clk 0:04:59.2]} 1... c5 {[%clk 0:04:57.7]} 2. e4 {[%clk 0:04:58.2]}
2... g6 {[%clk 0:04:55.9]} 3. d4 {[%clk 0:04:55.9]} 3... cxd4 {[%clk 0:04:54.7]}
4. Nxd4 {[%clk 0:04:55.3]} 4... Nc6 {[%clk 0:04:53.7]} 5. Nxc6 {[%clk
0:04:43.6]} 5... bxc6 {[%clk 0:04:52.6]} 6. g3 {[%clk 0:04:41]} 6... Bg7 {[%clk
0:04:48.1]} 7. Bg2 {[%clk 0:04:40.6]} 7... d6 {[%clk 0:04:38.4]} 8. O-O {[%clk
0:04:35.5]} 8... Nf6 {[%clk 0:04:32.2]} 9. Nc3 {[%clk 0:04:34.4]} 9... O-O
{[%clk 0:04:30.9]} 10. e5 {[%clk 0:04:29.6]} 10... dxe5 {[%clk 0:04:20.6]} 11.
Bxc6 {[%clk 0:04:25.4]} 11... Qxd1 {[%clk 0:04:17.3]} 12. Rxd1 {[%clk
0:04:24.1]} 12... Bg4 {[%clk 0:04:15.3]} 13. f3 {[%clk 0:04:18.6]} 13... Rac8
{[%clk 0:04:08.8]} 14. fxg4 {[%clk 0:04:08.7]} 14... Rxc6 {[%clk 0:04:06.2]} 15.
h3 {[%clk 0:04:08.2]} 15... e6 {[%clk 0:03:52.6]} 16. Be3 {[%clk 0:04:02.5]}
16... Nd5 {[%clk 0:03:28.4]} 17. Nxd5 {[%clk 0:03:58.8]} 17... exd5 {[%clk
0:03:28.3]} 18. c3 {[%clk 0:03:47.6]} 18... d4 {[%clk 0:03:24.2]} 19. cxd4
{[%clk 0:03:45]} 19... exd4 {[%clk 0:03:24.1]} 20. Bxd4 {[%clk 0:03:43.8]} 20...
Bxd4+ {[%clk 0:03:18.5]} 21. Rxd4 {[%clk 0:03:43]} 21... Rc2 {[%clk 0:03:16.5]}
22. Rf4 {[%clk 0:03:10.2]} 22... Re8 {[%clk 0:03:00.8]} 23. Rf2 {[%clk
0:03:09.3]} 23... Rc5 {[%clk 0:02:43.6]} 24. Raf1 {[%clk 0:03:05.3]} 24... Re3
{[%clk 0:02:39]} 25. Rxf7 {[%clk 0:02:34.2]} 25... Rxg3+ {[%clk 0:02:35.2]} 26.
Kh2 {[%clk 0:02:32.5]} 26... Rd3 {[%clk 0:02:29.1]} 27. R1f2 {[%clk 0:02:11]}
27... Re5 {[%clk 0:02:19.3]} 28. Rxa7 {[%clk 0:02:04.4]} 28... Ree3 {[%clk
0:02:18.1]} 29. Kg2 {[%clk 0:01:01.7]} 29... Rg3+ {[%clk 0:02:15.4]} 30. Kf1
{[%clk 0:00:59.6]} 30... Rxh3 {[%clk 0:02:08.7]} 31. Rb7 {[%clk 0:00:43.3]}
31... Rh1+ {[%clk 0:01:50.1]} 32. Ke2 {[%clk 0:00:42.5]} 32... Rdd1 {[%clk
0:01:47]} 33. a4 {[%clk 0:00:37.7]} 33... Rhe1+ {[%clk 0:01:42.5]} 34. Kf3
{[%clk 0:00:36.9]} 34... Rd3+ {[%clk 0:01:40.7]} 35. Kg2 {[%clk 0:00:35.8]}
35... Rdd1 {[%clk 0:01:39.1]} 36. b4 {[%clk 0:00:31.3]} 36... Rg1+ {[%clk
0:01:37.9]} 37. Kf3 {[%clk 0:00:30.8]} 37... Rd3+ {[%clk 0:01:36.6]} 38. Ke2
{[%clk 0:00:30.1]} 38... Rgd1 {[%clk 0:01:34.9]} 39. b5 {[%clk 0:00:26.6]} 39...
R1d2+ {[%clk 0:01:29.7]} 40. Kf1 {[%clk 0:00:25.5]} 40... Rd1+ {[%clk
0:01:28.6]} 41. Kg2 {[%clk 0:00:24.9]} 41... Rd4 {[%clk 0:01:25.7]} 42. Kg3
{[%clk 0:00:22.5]} 42... R1d3+ {[%clk 0:01:22.6]} 43. Rf3 {[%clk 0:00:21.9]}
43... Rd1 {[%clk 0:01:21.5]} 44. a5 {[%clk 0:00:20.5]} 44... Rg1+ {[%clk
0:01:20]} 45. Kf2 {[%clk 0:00:20.1]} 45... Rdxg4 {[%clk 0:01:17.8]} 46. a6
{[%clk 0:00:18.7]} 46... R1g2+ {[%clk 0:01:14.1]} 47. Ke3 {[%clk 0:00:18.1]}
47... g5 {[%clk 0:01:09.1]} 48. a7 {[%clk 0:00:17.1]} 48... Ra2 {[%clk
0:01:07.5]} 49. Rb8+ {[%clk 0:00:16.2]} 49... Kg7 {[%clk 0:01:06.6]} 50. a8=Q
{[%clk 0:00:15.5]} 50... Rxa8 {[%clk 0:01:05]} 51. Rxa8 {[%clk 0:00:14.7]} 51...
Rb4 {[%clk 0:01:03.7]} 52. Ra5 {[%clk 0:00:13.6]} 52... h5 {[%clk 0:01:01.6]}
53. Rf5 {[%clk 0:00:12.6]} 53... Kg6 {[%clk 0:01:00.1]} 54. Rc5 {[%clk
0:00:11.9]} 54... h4 {[%clk 0:00:58.5]} 55. Rc6+ {[%clk 0:00:11.3]} 55... Kh5
{[%clk 0:00:57.4]} 56. b6 {[%clk 0:00:10.9]} 56... h3 {[%clk 0:00:55.7]} 57. Ra2
{[%clk 0:00:09.4]} 57... g4 {[%clk 0:00:53.5]} 58. Rc8 {[%clk 0:00:08.6]} 58...
Kh4 {[%clk 0:00:52.2]} 59. Rh8+ {[%clk 0:00:07.6]} 59... Kg3 {[%clk 0:00:51.2]}
60. Rh6 {[%clk 0:00:06.4]} 60... Rb3+ {[%clk 0:00:49.4]} 61. Ke4 {[%clk
0:00:05.5]} 61... Rb4+ {[%clk 0:00:47.3]} 62. Kf5 {[%clk 0:00:05.1]} 62... Rb5+
{[%clk 0:00:46.4]} 63. Ke4 {[%clk 0:00:04.4]} 63... Rb4+ {[%clk 0:00:45.5]} 64.
Kd5 {[%clk 0:00:04]} 64... Rb5+ {[%clk 0:00:44.7]} 65. Kc4 {[%clk 0:00:03.9]}
65... Rb1 {[%clk 0:00:43.5]} 66. Ra3+ {[%clk 0:00:03.5]} 66... Kg2 {[%clk
0:00:42.1]} 67. Rb3 {[%clk 0:00:03.4]} 67... Rc1+ {[%clk 0:00:40.9]} 68. Kb4
{[%clk 0:00:02.9]} 68... g3 {[%clk 0:00:39.8]} 69. Rb2+ {[%clk 0:00:02.8]} 69...
Kg1 {[%clk 0:00:37.7]} 70. b7 {[%clk 0:00:02.1]} 70... h2 {[%clk 0:00:33.6]} 71.
b8=Q {[%clk 0:00:01.3]} 71... g2 {[%clk 0:00:32.3]} 72. Qxh2+ {[%clk 0:00:00.1]}
72... Kf1 {[%clk 0:00:31.2]} 0-1

[Event "Live Chess"]
[Site "Chess.com"]
[Date "2023.05.21"]
[Round "-"]
[White "ShanthamGrarks"]
[Black "Missedidea"]
[Result "1-0"]
[WhiteElo "2026"]
[BlackElo "1815"]
[TimeControl "300"]
[EndTime "16:39:55 PDT"]
[Termination "ShanthamGrarks won by resignation"]

1. d4 {[%clk 0:04:57.9]} 1... Nf6 {[%clk 0:04:57.9]} 2. Nc3 {[%clk 0:04:55.9]}
2... c5 {[%clk 0:04:56]} 3. d5 {[%clk 0:04:53.7]} 3... d6 {[%clk 0:04:54.5]} 4.
e4 {[%clk 0:04:53.2]} 4... g6 {[%clk 0:04:53.5]} 5. f4 {[%clk 0:04:52.1]} 5...
Bg7 {[%clk 0:04:48.7]} 6. Nf3 {[%clk 0:04:51.4]} 6... O-O {[%clk 0:04:46]} 7.
Be2 {[%clk 0:04:45.9]} 7... a6 {[%clk 0:04:41.5]} 8. a4 {[%clk 0:04:43.5]} 8...
Nbd7 {[%clk 0:04:39.6]} 9. O-O {[%clk 0:04:41.9]} 9... Re8 {[%clk 0:04:31.3]}
10. h3 {[%clk 0:04:36.9]} 10... Rb8 {[%clk 0:04:29.3]} 11. e5 {[%clk 0:04:28.9]}
11... dxe5 {[%clk 0:04:26.8]} 12. Nxe5 {[%clk 0:04:27.4]} 12... Nxe5 {[%clk
0:03:53.5]} 13. fxe5 {[%clk 0:04:25.3]} 13... Nd7 {[%clk 0:03:45.9]} 14. e6
{[%clk 0:04:23.6]} 14... fxe6 {[%clk 0:03:40.9]} 15. dxe6 {[%clk 0:04:22.5]}
15... Nf6 {[%clk 0:03:35.2]} 16. Bc4 {[%clk 0:04:18.1]} 16... Qd4+ {[%clk
0:03:23.8]} 17. Kh1 {[%clk 0:04:13.2]} 17... Qxc4 {[%clk 0:03:20.2]} 18. Bg5
{[%clk 0:04:06.7]} 18... Bxe6 {[%clk 0:03:14.3]} 19. Bxf6 {[%clk 0:04:05.2]}
19... exf6 {[%clk 0:03:09.2]} 20. Re1 {[%clk 0:03:55.6]} 20... Bf7 {[%clk
0:02:58.9]} 21. Qf3 {[%clk 0:03:53.2]} 21... f5 {[%clk 0:02:50.6]} 22. Rad1
{[%clk 0:03:40.7]} 22... Bxc3 {[%clk 0:02:38.6]} 23. bxc3 {[%clk 0:03:40.6]}
23... Rxe1+ {[%clk 0:02:31.9]} 24. Rxe1 {[%clk 0:03:37.9]} 24... Re8 {[%clk
0:02:29.1]} 25. Rxe8+ {[%clk 0:03:33.1]} 25... Bxe8 {[%clk 0:02:26.9]} 26. Qxb7
{[%clk 0:03:33]} 26... Qf1+ {[%clk 0:02:20.1]} 27. Kh2 {[%clk 0:03:30.2]} 27...
Qf4+ {[%clk 0:02:14.2]} 28. Kg1 {[%clk 0:03:27.7]} 28... Qc1+ {[%clk 0:02:07.4]}
29. Kh2 {[%clk 0:03:26.7]} 29... Qxc2 {[%clk 0:02:03.6]} 30. Qxa6 {[%clk
0:03:25.9]} 30... Qxc3 {[%clk 0:01:58.7]} 31. Qe6+ {[%clk 0:03:24.8]} 31... Bf7
{[%clk 0:01:56.4]} 32. Qc8+ {[%clk 0:03:21.9]} 32... Kg7 {[%clk 0:01:53.7]} 33.
Qc7 {[%clk 0:03:18.1]} 33... c4 {[%clk 0:01:48.9]} 34. a5 {[%clk 0:03:15]} 34...
Qd4 {[%clk 0:01:45.6]} 35. a6 {[%clk 0:03:11.5]} 35... c3 {[%clk 0:01:44.8]} 36.
a7 {[%clk 0:03:09]} 36... c2 {[%clk 0:01:41.9]} 37. a8=Q {[%clk 0:03:03]} 37...
Qb2 {[%clk 0:01:27.2]} 38. Qaa7 {[%clk 0:02:56.3]} 38... Qb3 {[%clk 0:01:17.3]}
39. Qd4+ {[%clk 0:02:50.2]} 39... Kh6 {[%clk 0:01:14.1]} 40. Qdf4+ {[%clk
0:02:47.4]} 40... Kg7 {[%clk 0:01:10.6]} 41. Qc1 {[%clk 0:02:40]} 41... g5
{[%clk 0:01:04.4]} 42. Q1xc2 {[%clk 0:02:37.8]} 1-0